[Event "Azerbaijan-ch-Women-2025"]
[Site "Baku"]
[Date "2025.02.04"]
[Round "1.1"]
[White "Ismayil, Malak"]
[Black "Mammadova, Gulnar"]
[Result "0-1"]
[Annotator "TA"]
[ECO "A25"]
[WhiteElo "2122"]
[BlackElo "2333"]
[PlyCount "82"]
[EventDate "2025.01.08"]
[EventType "k.o."]
[EventCountry "AZE"]
[SourceTitle "playchess.com"]
[Source "ChessBase"]
[SourceQuality "1"]
[TimeControl "40/5400+30:1800+30"]

{[%evp 11,82,34,42,10,8,4,39,12,23,33,31,27,34,16,25,28,70,25,30,43,38,22,40,33,35,31,29,10,68,65,66,52,88,81,81,89,122,111,114,106,120,96,146,85,152,158,147,154,169,170,169,175,161,128,158,-211,-213,-244,-237,-256,-238,-347,-344,-397,-306,-306,-245,-420,-403,-652,-568,-479,-379]} 1. c4 {[%emt 0:00:06]} Nf6 {[%emt 0:00:55]} 2. g3 {[%emt 0:03:50]} e5 {[%emt 0:03:04]} 3. Bg2 {[%emt 0:00:50]} Nc6 {[%emt 0:00:32]} 4. Nc3 {[%emt 0:00:36]} Bb4 {[%emt 0:01:35]} 5. Nd5 {[%emt 0:01:39]} Nxd5 {[%emt 0:06:09]} 6. cxd5 {[%emt 0:01:00]} Ne7 {[%emt 0:00:26]} 7. e3 {[%emt 0:10:37]} O-O {[%emt 0:03:18]} 8. a3 {[%emt 0:07:37]} Bd6 {[%emt 0:01:45]} 9. Ne2 {[%emt 0:00:23][%cal Bg1e2,Be2d4,Bd4b5][%mdl 32] White is slightly better.} b6 {[%emt 0:04:50]} 10. d4 {[%emt 0:04:46]} exd4 {[%emt 0:02:28]} 11. Nxd4 {[%emt 1:04:36]} Ba6 {[%emt 0:05:32]} 12. Qa4 {[%emt 0:00:00]} Qc8 {[%emt 0:04:29]} 13. Nb5 {[%emt 0:00:00]} Bb7 {[%emt 0:06:02]} 14. Qb3 {[%emt 0:00:00]} (14. Nxa7 $2 Qb8 (14... Nxd5 15. Nxc8 Rxa4 16. Nxd6 $16) 15. O-O Rxa7 $19 (15... Qxa7 $2 16. Qd1 $19)) 14... Be5 {[%emt 0:04:19]} 15. f4 {[%emt 0:02:00]} c6 {[%emt 0:07:05]} 16. Nxa7 {[%emt 0:00:00]} Rxa7 {[%emt 0:01:02]} 17. fxe5 {[%emt 0:00:00]} cxd5 {[%emt 0:00:42]} 18. Qxb6 {[%emt 0:00:00]} Ra6 {[%emt 0:01:57]} (18... d4 19. Bxb7 Rxb7 20. Qxd4) 19. Qb3 {[%emt 0:00:00]} Re6 {[%emt 0:03:15]} ({Better is} 19... Rc6 $11 20. Bd2 (20. O-O Rc2 $11) 20... Ba6) 20. O-O $14 {[%emt 0:00:00]} Ba6 {[%emt 0:05:55]} 21. Re1 {[%emt 0:00:00]} Qc7 {[%emt 0:04:28]} 22. Bd2 {[%emt 0:00:00]} Rb8 {[%emt 0:03:10]} 23. Bb4 $1 {[%emt 0:00:00]} Rxe5 {[%emt 0:03:02]} 24. Rac1 {[%emt 0:00:00]} Qb6 {[%emt 0:01:52]} 25. Qc3 {[%emt 0:00:00]} Qe6 {[%emt 0:03:19]} 26. Bh3 {[%emt 0:00:00] A strong pair of Bishops.} f5 {[%emt 0:01:56] [#]} (26... Nf5 $142) 27. Bc5 {[%emt 0:00:00]} ({White should try} 27. Qd2 $1) 27... Rc8 {[%emt 0:03:32]} (27... Nc6 $142) 28. Qd2 $16 {[%emt 0:00:12]} Nc6 {[%emt 0:03:14]} 29. Bg2 {[%emt 0:01:10]} Bc4 {[%emt 0:06:23] [#]} 30. b3 $1 {[%emt 0:02:07][%mdl 512]} Bxb3 {[%emt 0:03:16]} 31. Bd4 {[%emt 0:00:15]} Re4 {[%emt 0:03:40]} 32. Bxe4 {[%emt 0:00:04]} fxe4 {[%emt 0:00:17] [#]} 33. Bxg7 $2 {[%emt 0:03:29] This move loses the game for White.} Kxg7 $19 {[%emt 0:00:29]} 34. Qb2+ {[%emt 0:00:27] [#]} d4 $1 {[%emt 0:00:03]} 35. exd4 {[%emt 0:00:03] Strongly threatening d5+.} Bd5 {[%emt 0:00:16] ...e3 is the strong threat.} 36. Re3 {[%emt 0:00:14]} (36. Qc3 {keeps fighting.}) 36... Rf8 {[%emt 0:00:50]} 37. a4 {[%emt 0:00:13]} Qf6 {[%emt 0:00:44][%cal Oc6b4] Hoping for ...Nb4!} 38. Rd1 {[%emt 0:00:17]} Ne7 {[%emt 0:00:19] ...Nf5 would now be deadly.} 39. a5 $2 {[%emt 0:01:32]} (39. Qc2 {might work better.}) 39... Nf5 {[%emt 0:01:34]} 40. Re2 {[%emt 0:00:00] White is weak on the light squares} (40. Rf1 $142 Nxe3 (40... Qxd4 41. Qxd4+ Nxd4 42. Rxf8 $11) 41. Rxf6 Rxf6 42. h4 Rf1+ 43. Kh2 Ng4+ 44. Kg2 Rf2+ 45. Qxf2 Nxf2 46. Kxf2) 40... e3 {[%emt 0:00:00][%cal Of5g3] ( -> ...Nxg3!)} 41. Rf1 {[%emt 0:01:46]} Bc4 {[%emt 0:04:27] Weighted Error Value: White=0.46/Black=0.19 (very precise) .  Loses game:     	White=1     	---        Mistake:       	White=4     	Black=3      Inaccurate:     	White=2     	Black=4      OK:         	White=9     	Black=13     Best:        	White=3     	Black=2      Strong:       	White=1     	---        Brilliant:      	---       	Black=1} ({Weaker is} 41... Qxd4 42. Rf4 Qxb2 43. Rxb2 $17) 0-1

[Event "Azerbaijan-ch-Women-2025"]
[Site "Baku"]
[Date "2025.02.04"]
[Round "1.1"]
[White "Aghaverdiyeva, Maryam"]
[Black "Fataliyeva, Ulviyya"]
[Result "0-1"]
[Annotator "TA"]
[ECO "C57"]
[WhiteElo "2031"]
[BlackElo "2381"]
[PlyCount "70"]
[EventDate "2025.01.08"]
[EventType "k.o."]
[EventCountry "AZE"]
[SourceTitle "playchess.com"]
[Source "ChessBase"]
[SourceQuality "1"]
[TimeControl "40/5400+30:1800+30"]

{[%evp 18,70,-14,-6,0,-5,0,0,19,16,19,18,20,17,39,37,30,-11,-6,-6,-6,-85,-75,-77,-83,-102,-84,-94,-91,-82,-100,-105,-116,-115,-98,-269,-256,-260,-241,-500,-508,-491,-487,-482,-481,-794,-815,-737,-758,-906,-850,-29990,-29991,-29991,-29992]} 1. e4 {[%emt 0:00:04]} e5 {[%emt 0:00:17]} 2. Nf3 {[%emt 0:00:10]} Nc6 {[%emt 0:00:05]} 3. Bc4 {[%emt 0:00:17]} Nf6 {[%emt 0:03:24]} 4. Ng5 {[%emt 0:01:07]} d5 {[%emt 0:00:10]} 5. exd5 {[%emt 0:00:08]} b5 {[%emt 0:00:08]} 6. Bxb5 {[%emt 0:09:15]} Qxd5 {[%emt 0:00:14]} 7. Nc3 {[%emt 0:04:19]} Qxg2 {[%emt 0:02:34]} 8. Qf3 {[%emt 0:00:34]} Qxf3 {[%emt 0:01:12]} 9. Nxf3 {[%emt 0:00:09]} Bd7 {[%emt 0:01:02]} 10. d3 {[%emt 0:14:15]} a6 {[%emt 0:08:12] C57: Two Knights: Wilkes-Barre/Traxler and 4 Ng5 d5 5 exd5, unusual Black 5th moves.} 11. Bc4 {[%emt 0:10:09]} Bg4 $146 {[%emt 0:08:12]} (11... Rb8 12. a3 h6 13. h3 a5 14. Nb5 Bd6 15. Rg1 Rg8 16. Nxd6+ cxd6 17. h4 Bg4 18. Nh2 {1-0 Balonyi,R-Papp,A (1871) HUN-chT2 Breyer 0910 2009 (4)}) 12. Ng5 {[%emt 0:01:58]} Bh5 {[%emt 0:15:43] The position is equal.} 13. Nd5 {[%emt 0:04:00]} Bd6 {[%emt 0:12:42]} 14. Nxf6+ {[%emt 0:29:37]} gxf6 {[%emt 0:00:08]} 15. Ne4 {[%emt 0:00:08]} (15. Bd5 Nd4 16. Bxa8 Nxc2+ 17. Kd2) 15... Be7 {[%emt 0:12:25]} 16. Bd5 {[%emt 0:10:55]} Kd7 {[%emt 0:00:15]} 17. Be3 {[%emt 0:00:34] Inhibits Nd4.} Rab8 $1 {[%emt 0:00:49]} 18. Ng3 {[%emt 0:01:50]} Bg4 {[%emt 0:02:38]} 19. Bxf7 {[%emt 0:06:04]} (19. h3 $11 Be6 20. Bxe6+ fxe6 21. O-O-O) 19... f5 $1 $17 {[%emt 0:05:44][%cal Oh8f8]} 20. f3 {[%emt 0:02:55]} Bh3 {[%emt 0:01:16][%cal Of5f4]} 21. f4 {[%emt 0:00:34]} exf4 {[%emt 0:12:32]} (21... Rxb2 {looks sharper.} 22. Kd2 exf4 23. Bxf4 Nd4) 22. Bxf4 {[%emt 0:00:05]} Rxb2 {[%emt 0:00:03]} 23. Bb3 {[%emt 0:00:07]} Re8 {[%emt 0:00:17] Black has strong rooks and is better} 24. O-O-O {[%emt 0:02:24]} Ba3 {[%emt 0:00:59][%csl LRa2,LRb3]} 25. Kd2 {[%emt 0:00:04]} Nd4 {[%emt 0:03:09][%cal Oh7h5] Black is more active.} 26. Kc3 $2 {[%emt 0:00:21] Loses the game.} (26. Bh6 $17) 26... Nxb3 $19 {[%emt 0:00:55]} 27. axb3 {[%emt 0:00:20] [#] aiming for Ra1.} Re6 $1 {[%emt 0:00:22] and ...Rc6+ would now be decisive} 28. Bc1 $2 {[%emt 0:01:30]} (28. d4 {might work better.} Rc6+ 29. Kd3) 28... Rc6+ {[%emt 0:00:50]} 29. Kd4 {[%emt 0:00:08] [#]} Bc5+ $1 {[%emt 0:00:34]} 30. Kc3 {[%emt 0:00:55]} Ra2 {[%emt 0:00:29] ( -> ...Bb6+)} 31. b4 {[%emt 0:00:32]} (31. d4 $142 Bd6+ 32. Kd3) 31... Bf2+ {[%emt 0:01:08]} 32. Kb3 {[%emt 0:00:14]} Raxc2 {[%emt 0:01:10]} 33. Bb2 {[%emt 0:00:46] Prevents R6c3+.} Bg2 {[%emt 0:00:32] ( -> ...Bd5+)} 34. Nxf5 {[%emt 0:00:26]} Bd5+ {[%emt 0:00:07] A strong pair of Bishops.} 35. Ka3 {[%emt 0:00:31]} R6c3+ {[%emt 0:00:05] Weighted Error Value: White=0.68/Black=0.03 (flawless)   Loses game:     	White=1     	---        Mistake:       	White=3     	---        Inaccurate:     	White=1     	---        OK:         	White=6     	Black=6      Best:        	White=5     	Black=4      Strong:       	---       	Black=4} 0-1

[Event "Azerbaijan-ch-Women-2025"]
[Site "Baku"]
[Date "2025.02.04"]
[Round "1.1"]
[White "Huseynova, Lala"]
[Black "Mammadzada, Gunay"]
[Result "0-1"]
[Annotator "TA"]
[ECO "B80"]
[WhiteElo "1972"]
[BlackElo "2412"]
[PlyCount "68"]
[EventDate "2025.01.08"]
[EventType "k.o."]
[EventCountry "AZE"]
[SourceTitle "playchess.com"]
[Source "ChessBase"]
[SourceQuality "1"]
[TimeControl "40/5400+30:1800+30"]

{[%evp 11,68,14,21,28,39,22,60,23,27,7,14,11,11,21,20,-13,28,20,11,0,0,0,0,0,0,0,0,0,7,0,33,-22,-48,-52,-64,-63,-77,-95,-101,-255,-226,-272,-273,-302,-287,-272,-181,-221,-204,-618,-619,-641,-640,-611,-611,-625,-618,-592,-531]} 1. e4 {[%emt 0:00:30]} c5 {[%emt 0:00:11]} 2. Nf3 {[%emt 0:00:00]} d6 {[%emt 0:00:05]} 3. d4 {[%emt 0:00:00]} cxd4 {[%emt 0:00:05]} 4. Nxd4 {[%emt 0:00:00]} Nf6 {[%emt 0:00:07]} 5. Nc3 {[%emt 0:00:00]} a6 {[%emt 0:00:07]} 6. Be3 {[%emt 0:00:11]} e6 {[%emt 0:00:20]} 7. a3 {[%emt 0:00:41] B80: Sicilian Scheveningen: 6 g3 and 6 Be3, including English Attack.} Nc6 {[%emt 0:02:09]} 8. f4 {[%emt 0:13:47]} Qc7 {[%emt 1:31:26]} 9. Be2 {[%emt 0:06:19] White is slightly better.} Be7 {[%emt 0:00:00]} 10. g4 {[%emt 0:03:07]} d5 {[%emt 0:00:00]} 11. e5 {[%emt 0:11:50]} Ne4 {[%emt 0:00:00]} 12. Nxe4 {[%emt 0:07:51]} dxe4 {[%emt 0:00:00]} 13. g5 $146 {[%emt 0:07:57]} (13. Nxc6 Qxc6 14. Qd4 O-O 15. Qc4 Qxc4 16. Bxc4 b5 17. Ba2 Bb7 18. O-O-O Rfd8 19. Bb6 {½-½ Bosiocic,M (2597)-Arsovic,Z (2427) BIH-chT 17th 2018 (7.5)}) 13... h6 {[%emt 0:00:00]} 14. Nxc6 {[%emt 0:04:34]} Qxc6 {[%emt 0:00:00]} 15. h4 {[%emt 0:00:58]} Bd7 {[%emt 0:00:00]} 16. Qd2 {[%emt 0:10:48]} hxg5 {[%emt 0:00:00]} 17. fxg5 {[%emt 0:00:12]} Qc7 {[%emt 0:00:00][%cal Oe8c8]} 18. O-O-O {[%emt 0:02:17][%cal Og5g6]} Ba4 {[%emt 0:00:00][%cal Oa8c8]} 19. Kb1 $1 {[%emt 0:10:38]} Rd8 $132 {[%emt 0:00:00][%mdl 2048] Black is fighting back} 20. Qc1 {[%emt 0:03:28]} (20. Bd4 Rxd4 21. Qxd4 Bxc2+ (21... Qxc2+ 22. Ka1 $11) 22. Ka2 Bxd1 23. Bxd1 Qc6 $15) 20... Rc8 {[%emt 0:00:00][%cal Ra4c2]} 21. Rd2 {[%emt 0:04:32]} (21. b3 $14) 21... Bc5 $11 {[%emt 0:00:00]} 22. Bxc5 {[%emt 0:04:37]} Qxc5 {[%emt 0:00:00]} 23. Rh3 {[%emt 0:02:59] [#] Hoping for Rc3.} Qxe5 {[%emt 0:00:00] Black is more active.} ({Of course not} 23... e3 $6 24. Rxe3 O-O (24... Qxe3 25. Rd8+ Rxd8 26. Qxe3 $14) 25. Re4 $14) 24. Qg1 {[%emt 0:02:44]} Qc5 {[%emt 0:00:00]} 25. Qxc5 {[%emt 0:01:27] White does not recover from this.} (25. Qc1 $17 Qf5 (25... e3 26. Rxe3 Qxe3 27. Rd8+ Ke7 28. Rd7+ Kxd7 29. Qxe3 $11) 26. Bf1) 25... Rxc5 $19 {[%emt 0:00:00]} 26. b3 {[%emt 0:00:30]} Bc6 {[%emt 0:00:00] and ...Rxg5 should not be overlooked} 27. Bg4 {[%emt 0:00:38]} Ke7 {[%emt 0:00:00]} 28. Rf2 {[%emt 0:00:39]} Rd8 {[%emt 0:00:00]} 29. Bh5 {[%emt 0:00:23]} Rf5 {[%emt 0:00:00]} 30. Re2 {[%emt 0:00:39] [#]} (30. Rg2) 30... g6 {[%emt 0:00:00] Black is clearly winning.} 31. Bg4 {[%emt 0:00:02]} Rf1+ {[%emt 0:00:00]} 32. Kb2 {[%emt 0:00:14]} Rg1 {[%emt 0:00:00]} 33. h5 {[%emt 0:00:22]} Rxg4 {[%emt 0:00:00]} 34. hxg6 {[%emt 0:00:02]} Rxg5 {[%emt 0:00:11] Weighted Error Value: White=0.33/Black=0.11 (very precise)   Mistake:       	White=3     	---        Inaccurate:     	White=2     	Black=4      OK:         	White=6     	Black=12     Best:        	White=1     	---        Strong:       	White=1     	---} 0-1

[Event "Azerbaijan-ch-Women-2025"]
[Site "Baku"]
[Date "2025.02.05"]
[Round "1.2"]
[White "Mammadzada, Gunay"]
[Black "Huseynova, Lala"]
[Result "0-1"]
[Annotator "RC"]
[ECO "D35"]
[WhiteElo "2412"]
[BlackElo "1972"]
[PlyCount "68"]
[EventDate "2025.01.08"]
[EventType "k.o."]
[EventCountry "AZE"]
[SourceTitle "playchess.com"]
[Source "ChessBase"]
[SourceQuality "1"]
[TimeControl "40/5400+30:1800+30"]

1. d4 {[%emt 0:00:04]} d5 {[%emt 0:00:07]} 2. c4 {[%emt 0:00:06]} e6 {[%emt 0:00:03]} 3. Nc3 {[%emt 0:00:14]} Be7 {[%emt 0:00:07]} 4. cxd5 {[%emt 0:00:38]} exd5 {[%emt 0:00:15]} 5. Bf4 {[%emt 0:00:11]} Nf6 {[%emt 0:01:21]} 6. e3 {[%emt 0:00:25]} O-O {[%emt 0:03:36]} 7. Bd3 {[%emt 0:00:17]} c5 {[%emt 0:00:56]} 8. Nge2 {[%emt 0:02:26]} Nc6 {[%emt 0:00:47]} 9. O-O {[%emt 0:08:36]} Bg4 {[%emt 0:13:50]} 10. dxc5 {[%emt 0:10:16]} Bxc5 {[%emt 0:03:49]} 11. h3 {[%emt 0:01:48]} Bxe2 {[%emt 0:03:50]} 12. Nxe2 {[%emt 0:02:47]} d4 {[%emt 0:03:47]} 13. e4 {[%emt 0:04:04]} Nd7 {[%emt 0:06:04]} 14. Rc1 {[%emt 0:10:19]} a5 {[%emt 0:10:15]} 15. a3 {[%emt 0:04:37]} Qb6 {[%emt 0:03:14]} 16. Qd2 {[%emt 0:10:31]} a4 {[%emt 0:01:39]} 17. Ng3 {[%emt 0:01:33]} Rac8 {[%emt 0:13:31]} 18. Rc2 {[%emt 0:05:33]} Nce5 {[%emt 0:03:22]} 19. Bxe5 {[%emt 0:00:52]} Nxe5 {[%emt 0:00:01]} 20. Rfc1 {[%emt 0:00:21]} Rc6 {[%emt 0:07:45]} 21. f4 {[%emt 0:10:06]} Nxd3 {[%emt 0:03:33]} 22. Qxd3 {[%emt 0:00:05]} Rfc8 {[%emt 0:01:46]} 23. Kf1 {[%emt 0:03:40]} Qb3 {[%emt 0:10:55]} 24. Ke2 {[%emt 0:00:04]} b6 {[%emt 0:02:03]} 25. Qxb3 {[%emt 0:01:45]} axb3 {[%emt 0:00:05]} 26. Rd2 {[%emt 0:00:04]} g6 {[%emt 0:03:00]} 27. Kf3 {[%emt 0:06:43]} Be7 {[%emt 0:02:04]} 28. Rxc6 {[%emt 0:00:30]} Rxc6 {[%emt 0:00:30]} 29. Rd3 {[%emt 0:07:01]} Rc3 {[%emt 0:00:11]} 30. Ke2 {[%emt 0:00:28]} Rc2+ {[%emt 0:00:04]} 31. Kf3 {[%emt 0:01:20]} Rxb2 {[%emt 0:00:31]} 32. Ne2 {[%emt 0:00:02]} Rb1 {[%emt 0:01:48]} 33. Kf2 {[%emt 0:01:50]} b2 {[%emt 0:00:11]} 34. Rb3 {[%emt 0:00:36]} d3 {[%emt 0:00:31]} 0-1

[Event "Azerbaijan-ch-Women-2025"]
[Site "Baku"]
[Date "2025.02.05"]
[Round "1.2"]
[White "Fataliyeva, Ulviyya"]
[Black "Aghaverdiyeva, Maryam"]
[Result "1-0"]
[Annotator "RC"]
[ECO "E12"]
[WhiteElo "2381"]
[BlackElo "2031"]
[PlyCount "85"]
[EventDate "2025.01.08"]
[EventType "k.o."]
[EventCountry "AZE"]
[SourceTitle "playchess.com"]
[Source "ChessBase"]
[SourceQuality "1"]
[TimeControl "40/5400+30:1800+30"]

1. d4 Nf6 2. Nf3 e6 3. Bf4 b6 4. e3 Bb7 5. c4 Bb4+ 6. Nfd2 O-O 7. a3 Be7 8. Nc3 c5 9. dxc5 bxc5 10. Qc2 d5 11. Bd3 d4 12. Nce4 Nxe4 13. Bxe4 Bxe4 14. Qxe4 Nd7 15. O-O e5 16. Bxe5 Nxe5 17. Qxe5 Bf6 18. Qxc5 dxe3 19. Qxe3 Re8 20. Ne4 Bxb2 21. Ra2 Rb8 22. Re1 f5 23. Rxb2 Rxe4 24. Rxb8 Qxb8 25. Qc1 Qb2 26. g3 Rxe1+ 27. Qxe1 Kf7 28. Qb4 Qa1+ 29. Kg2 Qd4 30. Qb7+ Kf6 31. Qc6+ Ke7 32. h4 h5 33. Qg6 Qg4 34. Qxg4 hxg4 35. Kf1 Kd6 36. Ke2 Kc5 37. Kd3 g6 38. Kc3 a6 39. Kd3 a5 40. Kc3 a4 41. Kd3 Kc6 42. Kd4 Kd6 43. c5+ 1-0

[Event "Azerbaijan-ch-Women-2025"]
[Site "Baku"]
[Date "2025.02.05"]
[Round "1.2"]
[White "Mammadova, Gulnar"]
[Black "Ismayil, Malak"]
[Result "1-0"]
[Annotator "RC"]
[ECO "C70"]
[WhiteElo "2333"]
[BlackElo "2122"]
[PlyCount "35"]
[EventDate "2025.01.08"]
[EventType "k.o."]
[EventCountry "AZE"]
[SourceTitle "playchess.com"]
[Source "ChessBase"]
[SourceQuality "1"]
[TimeControl "40/5400+30:1800+30"]

1. e4 {[%emt 0:00:03]} e5 {[%emt 0:00:08]} 2. Nf3 {[%emt 0:00:14]} Nc6 {[%emt 0:00:04]} 3. Bb5 {[%emt 0:00:10]} a6 {[%emt 0:00:04]} 4. Ba4 {[%emt 0:00:08]} b5 {[%emt 0:02:16]} 5. Bb3 {[%emt 0:00:05]} Na5 {[%emt 0:01:11]} 6. O-O {[%emt 0:06:05]} d6 {[%emt 0:00:31]} 7. d4 {[%emt 0:00:47]} exd4 {[%emt 0:08:41]} 8. Nxd4 {[%emt 0:00:59]} Bb7 {[%emt 0:08:45]} 9. Bd2 {[%emt 0:02:03]} c5 {[%emt 0:04:36]} 10. Bd5 {[%emt 0:01:44]} Bxd5 {[%emt 0:00:30]} 11. exd5 {[%emt 0:00:05]} b4 {[%emt 0:08:29]} 12. Re1+ {[%emt 0:02:18]} Ne7 {[%emt 0:02:51]} 13. Nf5 {[%emt 0:03:19]} Nc4 {[%emt 0:15:57]} 14. Bf4 {[%emt 0:06:09]} Qd7 {[%emt 0:04:04]} 15. Qd3 {[%emt 0:07:02]} Nxb2 {[%emt 0:05:32]} 16. Qe4 {[%emt 0:00:27]} Kd8 {[%emt 0:00:19]} 17. Nxd6 {[%emt 0:00:46]} Nc8 {[%emt 0:09:21]} 18. Nb7+ {[%emt 0:00:46]} 1-0

[Event "Azerbaijan-ch-Women-2025"]
[Site "Baku"]
[Date "2025.02.05"]
[Round "1.2"]
[White "Mamedjarova, Turkan"]
[Black "Kazimova, Narmin"]
[Result "1-0"]
[Annotator "NA RC"]
[ECO "C22"]
[WhiteElo "2197"]
[BlackElo "2167"]
[PlyCount "59"]
[EventDate "2025.01.08"]
[EventType "k.o."]
[EventCountry "AZE"]
[SourceTitle "playchess.com"]
[Source "ChessBase"]
[SourceQuality "1"]
[TimeControl "40/5400+30:1800+30"]

1. e4 {[%emt 0:00:04]} e5 {[%emt 0:00:12]} 2. Nc3 {[%emt 0:00:39]} Nf6 {[%emt 0:00:33]} 3. d4 {[%emt 0:00:24]} exd4 {[%emt 0:02:24]} 4. Qxd4 {[%emt 0:00:17]} Nc6 {[%emt 0:00:17]} 5. Qe3 {[%emt 0:00:23]} Bb4 {[%emt 0:01:27]} 6. Bd2 {[%emt 0:00:17]} O-O {[%emt 1:28:37]} 7. O-O-O {[%emt 0:00:12]} Re8 {[%emt 0:00:00]} 8. Bc4 {[%emt 0:09:29]} Ne5 {[%emt 0:00:00]} 9. Bb3 {[%emt 0:05:15]} a5 {[%emt 0:00:00]} 10. a3 {[%emt 0:09:31]} Neg4 {[%emt 0:00:00]} 11. Qg3 {[%emt 0:02:44]} a4 {[%emt 0:00:00]} 12. Ba2 {[%emt 0:08:22]} Bc5 {[%emt 0:00:00]} 13. Nh3 {[%emt 0:01:37]} d6 {[%emt 0:00:00]} 14. Ng5 {[%emt 0:13:03]} Re7 {[%emt 0:00:00]} 15. Rhf1 {[%emt 0:07:33]} h6 {[%emt 0:00:00]} 16. Nxf7 {[%emt 0:00:29]} Rxf7 {[%emt 0:00:00]} 17. h3 {[%emt 0:01:08]} Ne5 {[%emt 0:00:00]} 18. f4 {[%emt 0:02:45]} Nh5 {[%emt 0:04:31]} 19. Qe1 {[%emt 0:02:03]} Qe8 {[%emt 0:01:16]} 20. Bxf7+ {[%emt 0:06:46]} Nxf7 {[%emt 0:00:01]} 21. g4 {[%emt 0:01:10]} Nf6 {[%emt 0:00:01]} 22. g5 {[%emt 0:01:04]} Nd7 {[%emt 0:01:35]} 23. Nd5 {[%emt 0:01:44]} Qd8 {[%emt 0:00:26]} 24. gxh6 {[%emt 0:01:10]} Nxh6 {[%emt 0:00:27]} 25. Bc3 {[%emt 0:00:24]} c6 {[%emt 0:00:39]} 26. Qg3 {[%emt 0:00:28]} Ne5 {[%emt 0:00:33]} 27. Nf6+ {[%emt 0:03:46]} Qxf6 {[%emt 0:00:09]} 28. fxe5 {[%emt 0:00:07]} Qe7 {[%emt 0:00:50]} 29. exd6 {[%emt 0:00:28]} Qd7 {[%emt 0:00:29]} 30. Rf6 {[%emt 0:01:58]} 1-0